[Event "US Masters 2022"]
[Site "Charlotte"]
[Date "2022.11.26"]
[Round "6.15"]
[White "Luo, Terry"]
[Black "Mishra, Abhimanyu"]
[Result "0-1"]
[ECO "D00"]
[WhiteElo "2365"]
[BlackElo "2549"]
[Annotator "TA"]
[PlyCount "62"]
[EventDate "2022.11.23"]
[EventType "swiss"]
[EventCountry "USA"]
[SourceTitle "playchess.com"]
[Source "ChessBase"]
[SourceQuality "1"]
[TimeControl "5400+30"]

{[%evp 9,62,-10,-2,-3,-10,-17,-18,-25,-7,-20,16,-2,-4,-29,-41,-43,-50,-79,-79,-75,-75,-73,-60,-62,-50,-45,-56,-89,-46,-87,-76,-84,-70,-170,-158,-162,-169,-174,-150,-149,-153,-172,-136,-143,-136,-192,-125,-120,-126,-248,-250,-651,-672,-29990,-29991]} 1. d4 {[%emt 0:00:01]} d5 {[%emt 0:00:05]} 2. Nc3 {[%emt 0:00:04]} Nf6 {[%emt 0:00:19]} 3. Bf4 {[%emt 0:00:04]} e6 {[%emt 0:00:25]} 4. Nb5 {[%emt 0:00:05]} Na6 {[%emt 0:00:23]} 5. e3 {[%emt 0:00:06]} Be7 {[%emt 0:01:17]} 6. Nf3 {[%emt 0:00:16] D00: 1 d4 d5: Unusual lines.} O-O {[%emt 0:01:15]} 7. Be2 {[%emt 0:00:55]} c6 {[%emt 0:02:04]} 8. Nc3 {[%emt 0:00:04] The position is equal.} c5 {[%emt 0:00:18]} 9. O-O {[%emt 0:01:51]} Bd7 {[%emt 0:02:10]} 10. Ne5 {[%emt 0:04:01]} Be8 {[%emt 0:01:14] [#]} 11. g4 $146 {[%emt 0:07:51]} ({Predecessor:} 11. Bf3 Rc8 12. Ne2 cxd4 13. exd4 Qb6 14. Rb1 Nd7 15. c3 Nxe5 16. Bxe5 f6 17. Bg3 {1-0 (65) Madaminov,M (2425)-Yilmaz,M (2633) Tashkent 2022}) 11... Nb4 {[%emt 0:10:25]} 12. g5 {[%emt 0:07:42]} Nd7 {[%emt 0:08:26]} 13. Nf3 {[%emt 0:01:30]} cxd4 {[%emt 0:06:57]} 14. exd4 {[%emt 0:00:11]} f6 {[%emt 0:00:05][%cal Rf6g5]} 15. gxf6 {[%emt 0:04:57]} Rxf6 {[%emt 0:01:44]} (15... Nxf6 {keeps more tension.} 16. Ng5 Qb6 17. a3 Ne4) 16. Bg3 {[%emt 0:00:42]} Bg6 {[%emt 0:03:30]} 17. a3 {[%emt 1:08:40]} Nc6 {[%emt 0:07:12]} ({Don't take} 17... Nxc2 18. Rc1 $14) (17... Bxc2 18. Qd2 $16) 18. Qd2 {[%emt 0:00:00]} Bh5 {[%emt 0:10:17]} (18... Bf5 {simplifies} 19. Rae1 Rf7 20. Kh1 a6) 19. Ne5 {[%emt 0:00:00]} Ndxe5 {[%emt 0:04:08]} 20. dxe5 {[%emt 0:00:00]} Rf5 {[%emt 0:01:40][%cal Bf6f5,Bf5e5,Be5e3][%mdl 32]} 21. Bd3 {[%emt 0:00:00]} (21. f4 $15) 21... Nxe5 $19 {[%emt 0:12:19]} 22. Bxe5 {[%emt 0:00:00]} Rxe5 {[%emt 0:00:14]} 23. f4 {[%emt 0:00:00] Prevents Rg5+.} Bc5+ {[%emt 0:00:26]} 24. Kh1 {[%emt 0:00:00]} Re3 {[%emt 0:00:42] Strongly threatening ...Qh4.} 25. Na4 {[%emt 0:00:00]} Bb6 {[%emt 0:03:46]} 26. Nxb6 {[%emt 0:00:00]} Qxb6 {[%emt 0:00:05]} 27. Kg2 {[%emt 0:00:00] Prevents Bf3+.} (27. Rae1 $17 Bf3+ 28. Rxf3 Rxf3 29. Kg2 Rxd3 30. cxd3) 27... d4 {[%emt 0:04:25]} (27... Bg4 $19 {...Bh3+ is the strong threat.} 28. Qb4 Bh3+ 29. Kf2 Qxb4 30. axb4 Rxd3 31. cxd3 Bxf1 32. Rxf1 Rc8) 28. Rae1 $17 {[%emt 0:00:00]} Rf8 {[%emt 0:01:36] Black is more active.} 29. Qb4 {[%emt 0:00:00] Prevents e5.} (29. Rxe3 $17 {only move.} dxe3 30. Qb4) 29... Bf3+ $19 {[%emt 0:03:45]} 30. Kg1 $2 {[%emt 0:00:00]} (30. Rxf3 Qxb4 31. Rexe3 Qxb2 32. Rxe6) 30... Rxf4 {[%emt 0:01:12] [#] ( -> ...Rg4+)} 31. h3 {[%emt 0:00:00] Prevents Rg4+.} Qc7 {[%emt 0:01:27] Weighted Error Value: White=0.57/Black=0.09 (flawless)} 0-1

[Event "US Masters 2022"]
[Site "Charlotte"]
[Date "2022.11.26"]
[Round "6.16"]
[White "Schitco, Ivan"]
[Black "Fishbein, Alexander"]
[Result "1-0"]
[ECO "E90"]
[WhiteElo "2532"]
[BlackElo "2389"]
[Annotator "TA"]
[PlyCount "101"]
[EventDate "2022.11.23"]
[EventType "swiss"]
[EventCountry "USA"]
[SourceTitle "playchess.com"]
[Source "ChessBase"]
[SourceQuality "1"]
[TimeControl "5400+30"]

{[%evp 12,101,36,38,24,28,29,41,27,33,31,31,41,18,13,-19,-3,-52,-1,-9,0,-37,-39,-43,-22,-56,-49,-64,-60,-84,-79,-83,-60,-53,-33,-25,38,39,159,137,555,552,598,566,747,671,706,681,702,251,262,144,158,88,463,454,634,617,842,799,839,693,573,225,556,546,495,339,1208,1101,1077,1058,12830,933,802,893,11196,12382,12839,816,12840,12840,12841,12840,12840,12838,12845,12846,12846,12847,29998,29998]} 1. d4 {[%emt 0:00:03]} Nf6 {[%emt 0:04:58]} 2. c4 {[%emt 0:00:07]} g6 {[%emt 0:00:02]} 3. Nc3 {[%emt 0:00:06]} Bg7 {[%emt 0:00:05]} 4. e4 {[%emt 0:00:07]} d6 {[%emt 0:00:03]} 5. h3 {[%emt 0:00:13]} O-O {[%emt 0:00:24]} 6. Be3 {[%emt 0:00:14]} c6 {[%emt 0:01:10]} 7. Nf3 {[%emt 0:01:12]} Na6 {[%emt 0:03:44] E90: King's Indian: Classical: Early deviations and 6 h3.} 8. Be2 {[%emt 0:02:20]} e5 {[%emt 0:00:23]} 9. d5 {[%emt 0:01:51]} (9. dxe5 {simplifies} dxe5 10. Qxd8 Rxd8 11. O-O) 9... Nh5 {[%emt 0:00:11][%cal Bf6h5,Bh5f4,Bf4e2][%mdl 32] White is slightly better.} 10. O-O {[%emt 0:03:21]} Nf4 {[%emt 0:04:14]} 11. Re1 {[%emt 0:00:15]} Nxe2+ {[%emt 0:00:13]} 12. Rxe2 {[%emt 0:04:09]} c5 $1 {[%emt 0:01:26] [#]} 13. Ne1 $146 {[%emt 0:04:15]} ({Predecessor:} 13. Qd2 Nc7 14. a3 a5 15. Ree1 Bd7 16. a4 b6 17. Nh2 Na6 18. Nb5 Bxb5 19. axb5 Nb4 20. Qd1 f5 21. Nf3 Bf6 22. Bh6 Rf7 23. Bd2 Qd7 24. Ra3 {½-½ (24) Sanchez,M (2359)-Rain,R (2251) ICCF email 2015}) 13... f5 {[%emt 0:01:27]} 14. f3 {[%emt 0:02:00]} (14. f4 $11) 14... Nc7 {[%emt 0:04:42]} (14... f4 $15 15. Bf2 Bd7) 15. a3 {[%emt 0:05:45]} Ne8 {[%emt 0:01:38]} (15... f4 $5 {[%cal Rf4e3]} 16. Bf2 a5 $11) 16. Qd2 {[%emt 0:05:00]} f4 {[%emt 0:00:53]} 17. Bf2 {[%emt 0:01:18]} g5 {[%emt 0:00:16]} 18. Nd3 {[%emt 0:03:50]} h5 {[%emt 0:01:28]} 19. Kf1 {[%emt 0:03:19]} g4 {[%emt 0:01:23]} 20. hxg4 {[%emt 0:03:34]} hxg4 {[%emt 0:00:03]} 21. Ke1 {[%emt 0:02:53]} Qg5 {[%emt 0:07:57]} 22. Kd1 {[%emt 0:04:59]} Qh5 {[%emt 0:00:55]} 23. Kc2 {[%emt 0:00:09]} gxf3 {[%emt 0:00:29]} (23... g3 $11 24. Be1 Bd7) 24. gxf3 $14 {[%emt 0:00:02]} Qxf3 {[%emt 0:00:09]} (24... Rf6 $14) 25. Rg1 $1 $16 {[%emt 0:00:23]} Nf6 $2 {[%emt 0:12:09][%mdl 8192] [#]} (25... Bg4 $2 26. Bh4 Bd7 27. Be7) (25... Rf6 $16) 26. Bxc5 $1 $18 {[%emt 0:13:15][%mdl 576] Deflection} dxc5 {[%emt 0:02:06]} (26... Ng4 27. Bxd6) 27. Nxe5 {[%emt 0:01:06]} Qh5 {[%emt 0:04:08]} 28. Reg2 {[%emt 0:03:54]} (28. Qxf4 $2 Ng4 $1 $19 {[%mdl 512]}) 28... Ne8 {[%emt 0:07:51]} 29. Rg5 {[%emt 0:03:49]} Qh3 {[%emt 0:00:31]} 30. Ng6 $2 {[%emt 0:12:33] Against f3. Pair of Knights!} (30. d6) 30... Rf7 {[%emt 0:05:53]} 31. Nxf4 {[%emt 0:07:25] Really sharp!} (31. Kb1 $18) 31... Qh4 $16 {[%emt 0:01:34]} 32. Nce2 {[%emt 0:00:40]} (32. Nd3 $142) 32... Nd6 $2 {[%emt 0:02:38][%mdl 8192]} (32... Nf6 $16 {is a better chance.} 33. Nc3 Ng4) 33. Qc3 $18 {[%emt 0:04:05]} Ne8 {[%emt 0:07:25]} (33... Qh7 $2 34. Rxg7+ Rxg7 {[#]} 35. Nh5 $1 {[%mdl 512]} Qxe4+ 36. Kb3 Rxg1 37. Nf6+ Kf7 38. Nxe4 Nxe4 39. Qf3+ Nf6 40. Nxg1 $18) 34. Kb3 {[%emt 0:01:57]} Kh7 {[%emt 0:02:38]} 35. e5 {[%emt 0:02:10] Black must now prevent Rh5+.} Rxf4 {[%emt 0:01:47]} 36. Nxf4 {[%emt 0:00:05]} Qxf4 {[%emt 0:00:05]} 37. e6 $2 {[%emt 0:03:11]} (37. Qc2+ Kg8 38. Qg2) 37... Qd4 $2 {[%emt 0:04:03]} (37... Qxg5 38. Qd3+ Kh6 39. Rh1+ Qh5 40. Qe3+ (40. Rxh5+ Kxh5 41. Qh3+ Kg5 $16) 40... Kg6 41. Rxh5 Kxh5) 38. Qc2+ {[%emt 0:01:03]} Kg8 {[%emt 0:01:07][%cal Ob7b5]} 39. R5g4 {[%emt 0:00:58] Prevents b5.} Qe5 {[%emt 0:03:24]} (39... Qe3+ 40. Ka2 Bxe6 41. dxe6 Qxe6) 40. Qg6 {[%emt 0:01:28]} Bxe6 {[%emt 0:04:18]} 41. dxe6 {[%emt 0:00:23] White threatens Qf7+ and mate.} Qxb2+ {[%emt 0:00:21]} 42. Ka4 {[%emt 0:00:01]} Qf2 {[%emt 0:01:08] Against Qf7+} 43. Rh1 {[%emt 0:00:51] Intending Rh7 and mate.} (43. e7 b5+ 44. cxb5 (44. Kxb5 Qe3 $11) 44... a6 $18) 43... b5+ {[%emt 0:05:41]} 44. cxb5 {[%emt 0:00:08] Rh7 would kill now.} (44. Kxb5 Qf6 $16) 44... a6 {[%emt 0:01:02]} 45. Qh7+ {[%emt 0:00:09]} Kf8 {[%emt 0:00:03]} 46. e7+ {[%emt 0:00:08]} Kf7 {[%emt 0:00:43]} 47. Qg6+ {[%emt 0:00:26]} Kxe7 {[%emt 0:00:24]} 48. Qe4+ {[%emt 0:00:22]} ({Weaker is} 48. bxa6 Kf8 $11) 48... Kd7 {[%emt 0:00:25]} 49. Rxg7+ {[%emt 0:00:29]} (49. Qxa8 $2 {loses.} axb5+ 50. Ka5 Bc3+ 51. Kb6 (51. Kxb5 $2 {perishes.} Nc7+ 52. Kc4 Nxa8 $19) 51... c4+ 52. Kb7 Qf3+ 53. Ka7 Qxg4 $19) 49... Nxg7 {[%emt 0:00:07]} 50. Rd1+ {[%emt 0:00:09]} Kc7 {[%emt 0:00:05]} 51. Qc6+ {[%emt 0:00:06] Weighted Error Value: White=0.61/Black=0.86} 1-0

[Event "US Masters 2022"]
[Site "Charlotte"]
[Date "2022.11.26"]
[Round "6.17"]
[White "Deviprasath, Sharvesh"]
[Black "Brodsky, David"]
[Result "1/2-1/2"]
[ECO "A17"]
[WhiteElo "2265"]
[BlackElo "2509"]
[Annotator "TA"]
[PlyCount "171"]
[EventDate "2022.11.23"]
[EventType "swiss"]
[EventCountry "USA"]
[SourceTitle "playchess.com"]
[Source "ChessBase"]
[SourceQuality "1"]
[TimeControl "5400+30"]

{[%evp 9,171,2,0,8,17,6,18,14,14,0,0,0,0,0,-2,-23,-8,-16,-22,-16,-11,-29,-12,-23,0,-41,-41,-35,-52,-63,-12,-7,-20,-13,-8,-26,-25,-26,-25,-28,-35,-25,0,-22,-29,-29,-16,-17,0,-32,-32,-32,-27,-41,0,0,0,0,0,0,0,0,0,0,0,0,0,0,0,0,-4,-3,-1,-6,0,0,0,-6,0,-88,-88,-88,-88,-88,-88,-88,-88,-88,-88,-88,-88,-88,-88,-88,-88,-88,-88,-88,-88,-88,-80,-80,-80,-80,-80,-80,0,0,0,0,0,0,0,0,0,0,0,0,0,0,0,0,0,0,0,0,0,0,0,0,0,0,0,0,0,0,0,0,0,0,0,0,0,0,0,0,0,0,0,0,0,0,0,0,0,0,0,0,0,0,0,0,0,0]} 1. c4 {[%emt 0:21:02]} e6 {[%emt 0:00:40]} 2. Nf3 {[%emt 0:01:03]} d5 {[%emt 0:00:17]} 3. e3 {[%emt 0:01:00]} Nf6 {[%emt 0:00:10]} 4. Nc3 {[%emt 0:00:10]} Bd6 {[%emt 0:00:13]} 5. b3 {[%emt 0:01:11]} O-O {[%emt 0:00:36]} 6. Bb2 {[%emt 0:00:13] A17: English Opening: 1...Nf6 with ...Bb4.} Re8 $1 {[%emt 0:00:17][%mdl 4] is more profitable than 6...c6 at the moment.} 7. Be2 {[%emt 0:02:25]} a6 {[%emt 0:12:49]} 8. O-O {[%emt 0:01:33]} b6 {[%emt 0:00:52]} 9. cxd5 {[%emt 0:02:25]} exd5 {[%emt 0:00:15]} 10. Rc1 {[%emt 0:00:11]} Bb7 {[%emt 0:02:40]} 11. Qc2 {[%emt 0:02:57]} Nbd7 {[%emt 0:02:04]} 12. h3 {[%emt 0:01:11] [#]} Qe7 $146 {[%emt 0:03:34]} ({Predecessor:} 12... Rc8 13. Rfd1 Qe7 14. Qb1 c5 15. d4 c4 16. a4 Bb4 17. Nd2 b5 18. axb5 axb5 19. bxc4 dxc4 {0-1 (45) Ten Hertog,H (2526)-Warmerdam,M (2614) Apeldoorn 2022}) 13. Nd4 {[%emt 0:03:04]} g6 {[%emt 0:02:16] Inhibits Nf5. Hoping for ...c5.} 14. Nf3 {[%emt 0:02:29]} Rac8 {[%emt 0:07:06]} 15. d4 {[%emt 0:06:09]} Ne4 {[%emt 0:10:58]} 16. Bd3 {[%emt 0:02:21]} c5 {[%emt 0:05:17]} 17. Qe2 {[%emt 0:08:16]} b5 {[%emt 0:06:49]} 18. dxc5 {[%emt 0:02:46]} Ndxc5 {[%emt 0:02:14]} 19. Bb1 {[%emt 0:01:17]} b4 {[%emt 0:05:54]} (19... Ng5 $1 $15) 20. Nxe4 $11 {[%emt 0:04:12]} dxe4 {[%emt 0:00:56]} 21. Nd2 {[%emt 0:00:21]} Rcd8 {[%emt 0:07:06][%cal Oc5d3]} 22. Ba1 {[%emt 0:05:51]} Nd3 {[%emt 0:03:25]} 23. Rcd1 {[%emt 0:00:46]} (23. Bxd3 exd3 24. Qd1 Bb8 $17) 23... Be5 {[%emt 0:06:34]} 24. Bxe5 {[%emt 0:05:23]} Qxe5 {[%emt 0:00:07]} 25. Nc4 {[%emt 0:00:07]} Qg5 {[%emt 0:01:47]} 26. Bxd3 {[%emt 0:02:09]} exd3 {[%emt 0:00:36][%csl Gb7][%cal Rg5g2] [#]} 27. Qg4 {[%emt 0:00:03]} Qf6 {[%emt 0:02:21]} 28. Rd2 {[%emt 0:01:16]} Rd5 {[%emt 0:03:01]} (28... h5 $5 {[%cal Rh5g4]} 29. Qf4 Qxf4 30. exf4 Re2 $11) 29. Qf4 {[%emt 0:04:17] Prevents Rg5.} Qxf4 {[%emt 0:03:53]} 30. exf4 {[%emt 0:00:08]} Re2 {[%emt 0:02:03]} 31. Rfd1 {[%emt 0:00:40]} Rd4 {[%emt 0:02:37]} 32. f3 {[%emt 0:02:20]} Rxf4 {[%emt 0:03:49]} 33. Rxe2 {[%emt 0:00:08]} dxe2 {[%emt 0:00:02][%mdl 4096] Endgame KRB-KRN} 34. Re1 {[%emt 0:00:01]} Bd5 {[%emt 0:01:52]} 35. Ne3 {[%emt 0:00:33]} Be6 {[%emt 0:00:08]} 36. Rxe2 {[%emt 0:00:06]} Rd4 {[%emt 0:01:27]} 37. Nc2 {[%emt 0:00:29]} Rd1+ {[%emt 0:00:03]} 38. Kf2 {[%emt 0:00:00]} a5 {[%emt 0:00:26]} 39. Re1 {[%emt 0:00:53]} Rd5 {[%emt 0:01:11]} 40. Ne3 {[%emt 0:00:51]} Rc5 {[%emt 0:00:33][%cal Oa5a4]} 41. Re2 {[%emt 0:01:24]} Rc1 {[%emt 0:00:44]} 42. Rc2 {[%emt 0:00:12]} Ra1 {[%emt 0:00:08]} 43. Nc4 {[%emt 0:00:07]} a4 {[%emt 0:01:06]} 44. bxa4 {[%emt 0:04:06]} (44. Ke3 $11 {keeps the balance.}) 44... Bxc4 $17 {[%emt 0:00:05]} 45. Rxc4 {[%emt 0:00:03] [#] Threatens to win with Rc2.} Rxa2+ $11 {[%emt 0:00:04] KR-KR} 46. Kg3 {[%emt 0:00:03]} Rxa4 {[%emt 0:00:08]} 47. Rc8+ {[%emt 0:00:01]} Kg7 {[%emt 0:00:06]} 48. Rb8 {[%emt 0:00:02]} Kf6 {[%emt 0:01:00] Strongly threatening ...Ke5.} 49. Kf4 {[%emt 0:00:03]} b3+ {[%emt 0:01:24]} 50. Kg3 {[%emt 0:00:35]} Ra3 {[%emt 0:00:07]} 51. Rb5 {[%emt 0:00:01]} Ke6 {[%emt 0:00:39]} 52. Kf4 {[%emt 0:04:39]} Kd6 {[%emt 0:00:11] White must now prevent ...Kc6.} 53. Ke4 {[%emt 0:06:51]} Kc6 {[%emt 0:00:25]} 54. Rb8 {[%emt 0:00:05]} Kc5 {[%emt 0:00:16]} (54... Ra4+ {simplifies} 55. Ke3 Ra2 56. Rxb3 Rxg2 57. Ra3 Kd6) 55. Kd3 {[%emt 0:04:27]} b2+ {[%emt 0:00:26]} 56. Kc2 {[%emt 0:00:26]} Ra2 {[%emt 0:00:23]} 57. Rb7 {[%emt 0:00:33] Against b1R+} f5 {[%emt 0:01:15]} ({Black should try} 57... b1=R+ $17 58. Kxb1 Rxg2 59. Rxf7 h5) 58. Kb1 $1 {[%emt 0:01:41] The position is equal.} Ra1+ {[%emt 0:00:17]} 59. Kxb2 {[%emt 0:00:02]} Rg1 {[%emt 0:00:06]} 60. g4 {[%emt 0:00:35]} f4 {[%emt 0:00:39]} 61. Kc3 {[%emt 0:01:05]} Rg3 {[%emt 0:01:16]} 62. Kd3 {[%emt 0:00:00]} Rxh3 {[%emt 0:01:01]} 63. Ke4 {[%emt 0:00:01]} g5 {[%emt 0:00:30]} 64. Ra7 {[%emt 0:00:22]} (64. Rg7 $5 h6 $8 65. Rc7+ Kb6 66. Re7 $11) 64... h6 {[%emt 0:00:25]} 65. Ra6 {[%emt 0:00:43]} Rh1 {[%emt 0:00:36]} 66. Rg6 {[%emt 0:01:18]} Re1+ {[%emt 0:00:36]} 67. Kf5 {[%emt 0:00:31]} Kd4 {[%emt 0:00:06]} 68. Rxh6 {[%emt 0:00:27]} Re5+ {[%emt 0:00:18]} 69. Kf6 {[%emt 0:00:26]} Ra5 {[%emt 0:00:29]} 70. Rh5 {[%emt 0:01:29]} Ke3 {[%emt 0:00:09]} 71. Rxg5 {[%emt 0:00:10]} Ra6+ {[%emt 0:00:23]} 72. Ke5 {[%emt 0:00:16]} Kxf3 {[%emt 0:00:19]} 73. Rg8 $1 {[%emt 0:00:01]} (73. Rf5 Kg3 74. Rf8 (74. Rxf4 Ra5+ 75. Ke4 Ra4+ 76. Ke5 Rxf4 77. g5 Rg4 78. Kf6 Kh4 79. g6 Kh5 80. g7 Kh6 81. Kf5 Rxg7 82. Ke4 Rd7 83. Ke5 Kg5 84. Ke6 Rd1 85. Ke5 Rd8 86. Ke6 Kf4 87. Ke7 Rd4 88. Ke6 Rd1 89. Kf7 Kf5 90. Ke7 Rd5 91. Kf7 Re5 92. Kg7 Re7+ 93. Kf8 Kf6 94. Kg8 Re8+ 95. Kh7 Ra8 96. Kh6 Rh8#) 74... Ra5+ 75. Ke4 Ra4+ 76. Kd3 Ra3+ 77. Kd2 Ra2+ 78. Kd3 Kxg4 79. Rg8+ Kf3 $19) 73... Ke3 {[%emt 0:01:15] And now ...f3 would win.} 74. g5 {[%emt 0:01:23]} f3 {[%emt 0:00:40]} 75. Rb8 {[%emt 0:00:22]} Ra5+ {[%emt 0:00:35]} 76. Kf6 {[%emt 0:00:13]} f2 {[%emt 0:00:23]} 77. Rb1 {[%emt 0:00:21] Prevents f1Q+.} Ra4 {[%emt 0:00:47]} 78. g6 {[%emt 0:00:17]} Rf4+ {[%emt 0:00:37]} 79. Ke7 {[%emt 0:00:13]} Rg4 {[%emt 0:00:31]} 80. Rb3+ {[%emt 0:00:53]} Ke4 {[%emt 0:00:28]} (80... Ke2 $5 81. Rb2+ $8 Kf3 82. Rxf2+ Kxf2 $11) 81. Rb4+ {[%emt 0:00:20]} Kf5 {[%emt 0:00:29]} (81... Kd3 $5 82. Rb3+ $8 (82. Rxg4 $2 {perishes.} f1=Q $17) 82... Ke2 83. Rb2+ Kf3 84. Rxf2+ Kxf2 $11) 82. Rxg4 {[%emt 0:00:45]} f1=Q {[%emt 0:00:12] ( -> ...Qe2+)} (82... f1=B {leads to mate.} 83. g7 Kxg4 84. g8=Q+ (84. g8=R+ Kf3 $11) 84... Kf3 85. Qf7+ Ke2 86. Ke6 Bg2 87. Ke5) (82... Kxg4 $5 83. g7 $8 f1=Q 84. g8=Q+ Kh5 $11) 83. g7 {[%emt 0:00:01]} Qe2+ {[%emt 0:00:33]} 84. Kf8 {[%emt 0:00:37]} Qxg4 {[%emt 0:00:12]} 85. g8=Q {[%emt 0:00:02]} Qxg8+ {[%emt 0:00:04]} 86. Kxg8 {[%emt 0:00:02] Weighted Error Value: White=0.08 (flawless) /Black=0.07 (flawless)} 1/2-1/2

[Event "US Masters 2022"]
[Site "Charlotte"]
[Date "2022.11.26"]
[Round "6.18"]
[White "Budisavljevic, Luka"]
[Black "Plotkin, Mark"]
[Result "1/2-1/2"]
[ECO "A84"]
[WhiteElo "2505"]
[BlackElo "2361"]
[Annotator "TA"]
[PlyCount "35"]
[EventDate "2022.11.23"]
[EventType "swiss"]
[EventCountry "USA"]
[SourceTitle "playchess.com"]
[Source "ChessBase"]
[SourceQuality "1"]
[TimeControl "5400+30"]

{[%evp 14,35,37,16,49,41,41,41,49,19,18,9,10,7,17,0,0,-36,20,16,3,28,17,6]} 1. Nf3 {[%emt 0:12:43]} d5 {[%emt 0:00:20]} 2. c4 {[%emt 0:00:20]} c6 {[%emt 0:00:17]} 3. e3 {[%emt 0:00:04]} e6 {[%emt 0:00:25]} 4. d4 {[%emt 0:00:18]} f5 {[%emt 0:00:15]} 5. Bd3 {[%emt 0:00:28]} Nf6 {[%emt 0:00:17]} 6. O-O {[%emt 0:00:19]} Bd6 {[%emt 0:00:30]} 7. b3 {[%emt 0:00:16]} Qe7 {[%emt 0:05:02]} 8. a4 {[%emt 0:00:29]} Nbd7 {[%emt 0:01:45] A84: Dutch Defence: 2 c4 Miscellaneous.} 9. Ba3 {[%emt 0:10:42]} Bxa3 {[%emt 0:00:35]} 10. Nxa3 {[%emt 0:00:05]} Ne4 {[%emt 0:00:37] White is slightly better.} 11. Qb1 {[%emt 0:00:48]} a5 {[%emt 0:02:50]} 12. Nc2 {[%emt 0:00:08]} O-O {[%emt 0:00:29][%cal Bh8f8,Bf8f6,Bf6h6][%mdl 32]} 13. Qb2 {[%emt 0:00:24] [#]} Rf6 $146 {[%emt 0:02:57]} (13... g5 {simplifies} 14. Ne5 Nxe5 15. dxe5 Nc5) ({Predecessor:} 13... b6 14. b4 Ba6 15. b5 cxb5 16. cxb5 Bb7 17. Rfc1 Rac8 18. Nce1 Nd6 19. Qa3 Rxc1 20. Rxc1 Rc8 21. Rxc8+ Nxc8 22. Qxe7 {½-½ (22) Godart,F (2394)-Delorme,A (2464) Chartres 2022}) 14. Ne5 {[%emt 0:06:18]} Rh6 {[%emt 0:01:44]} 15. g3 {[%emt 0:02:06]} Qg5 {[%emt 0:16:34]} (15... Nxe5 $15 16. dxe5 Nd2) 16. Ne1 {[%emt 0:11:09]} Qh5 {[%emt 0:06:37][%csl Gh6][%cal Rh5h2] [#]} 17. h4 {[%emt 0:08:15]} Nxe5 {[%emt 0:05:40]} 18. dxe5 {[%emt 0:00:48] Weighted Error Value: White=0.13 (very precise) /Black=0.12 (very precise)} 1/2-1/2